[Event "Titled Tuesday Blitz November 07 Early 2023"]
[White "Sattarov, Bobir"]
[Black "Polaczek, Richard"]
[WhiteFideId "14203081"]
[BlackFideId "200026"]
[WhiteElo "2786"]
[BlackElo "2433"]
[Result "1-0"]
[Round "1"]
[TimeControl "180+1"]
[Date "2023.11.07"]
[WhiteClock "0:01:08"]
[BlackClock "0:00:00"]
[Board "83"]

1. e4 {[%clk 0:02:56]}  Nf6 {[%clk 0:02:59]} 2. e5 {[%clk 0:02:56]}  Nd5 {[%clk 0:02:59]} 3. c4 {[%clk 0:02:57]}  Nb6 {[%clk 0:02:58]} 4. d4 {[%clk 0:02:57]}  d6 {[%clk 0:02:58]} 5. exd6 {[%clk 0:02:58]}  cxd6 {[%clk 0:02:58]} 6. Nc3 {[%clk 0:02:59]}  g6 {[%clk 0:02:58]} 7. Be3 {[%clk 0:03:00]}  Bg7 {[%clk 0:02:58]} 8. Rc1 {[%clk 0:03:00]}  O-O {[%clk 0:02:58]} 9. b3 {[%clk 0:03:01]}  Bf5 {[%clk 0:02:54]} 10. Be2 {[%clk 0:03:00]}  d5 {[%clk 0:02:49]} 11. c5 {[%clk 0:02:59]}  Nc8 {[%clk 0:02:49]} 12. Bf3 {[%clk 0:02:57]}  Nc6 {[%clk 0:02:19]} 13. Bxd5 {[%clk 0:02:55]}  e5 {[%clk 0:02:12]} 14. Bxc6 {[%clk 0:02:51]}  bxc6 {[%clk 0:02:11]} 15. Nge2 {[%clk 0:02:52]}  Ne7 {[%clk 0:02:06]} 16. O-O {[%clk 0:02:51]}  Bg4 {[%clk 0:02:00]} 17. dxe5 {[%clk 0:02:40]}  Bxe5 {[%clk 0:01:15]} 18. Bd4 {[%clk 0:02:35]}  Qc7 {[%clk 0:01:06]} 19. Bxe5 {[%clk 0:02:31]}  Qxe5 {[%clk 0:01:05]} 20. Qd4 {[%clk 0:02:32]}  Qxd4 {[%clk 0:00:41]} 21. Nxd4 {[%clk 0:02:33]}  Rad8 {[%clk 0:00:34]} 22. Nc2 {[%clk 0:02:21]}  Rd2 {[%clk 0:00:25]} 23. Ne3 {[%clk 0:02:21]}  Be6 {[%clk 0:00:23]} 24. Rfd1 {[%clk 0:02:19]}  Rfd8 {[%clk 0:00:18]} 25. Rxd2 {[%clk 0:02:19]}  Rxd2 {[%clk 0:00:18]} 26. Rd1 {[%clk 0:02:20]}  Rb2 {[%clk 0:00:14]} 27. g4 {[%clk 0:02:14]}  h6 {[%clk 0:00:12]} 28. Rd8+ {[%clk 0:02:09]}  Kg7 {[%clk 0:00:12]} 29. Ra8 {[%clk 0:02:09]}  h5 {[%clk 0:00:10]} 30. gxh5 {[%clk 0:02:08]}  Nf5 {[%clk 0:00:09]} 31. Rxa7 {[%clk 0:01:46]}  Nxe3 {[%clk 0:00:07]} 32. fxe3 {[%clk 0:01:47]}  gxh5 {[%clk 0:00:05]} 33. h4 {[%clk 0:01:44]}  Kf6 {[%clk 0:00:04]} 34. Ra4 {[%clk 0:01:39]}  Rc2 {[%clk 0:00:01]} 35. Ne4+ {[%clk 0:01:34]}  Kg6 {[%clk 0:00:01]} 36. Ng3 {[%clk 0:01:13]}  Rc1+ {[%clk 0:00:01]} 37. Kf2 {[%clk 0:01:14]}  Rxc5 {[%clk 0:00:02]} 38. Kf3 {[%clk 0:01:14]}  Bd5+ {[%clk 0:00:01]} 39. Kf4 {[%clk 0:01:14]}  Rc3 {[%clk 0:00:00]} 40. Ra6 {[%clk 0:01:08]} 1-0


[Site "https://www.chess.com"]

[Event "Titled Tuesday Blitz November 07 Early 2023"]
[White "Hambleton, Aman"]
[Black "Liu, Casper"]
[WhiteFideId "2606577"]
[BlackFideId "1454153"]
[WhiteElo "2775"]
[BlackElo "2427"]
[Result "0-1"]
[Round "1"]
[TimeControl "180+1"]
[Date "2023.11.07"]
[WhiteClock "0:00:00"]
[BlackClock "0:00:52"]
[Board "89"]

1. d4 {[%clk 0:02:57]}  Nf6 {[%clk 0:02:59]} 2. Bf4 {[%clk 0:02:57]}  Nh5 {[%clk 0:02:58]} 3. Bc1 {[%clk 0:02:47]}  Nf6 {[%clk 0:02:59]} 4. Nc3 {[%clk 0:02:47]}  d5 {[%clk 0:02:59]} 5. Bf4 {[%clk 0:02:47]}  g6 {[%clk 0:02:52]} 6. e3 {[%clk 0:02:47]}  Bg7 {[%clk 0:02:52]} 7. Nb5 {[%clk 0:02:47]}  Na6 {[%clk 0:02:52]} 8. h3 {[%clk 0:02:46]}  O-O {[%clk 0:02:52]} 9. Nf3 {[%clk 0:02:40]}  c5 {[%clk 0:02:52]} 10. c3 {[%clk 0:02:37]}  Qb6 {[%clk 0:02:48]} 11. a4 {[%clk 0:02:36]}  Bd7 {[%clk 0:02:45]} 12. Be2 {[%clk 0:02:32]}  c4 {[%clk 0:02:41]} 13. b3 {[%clk 0:02:32]}  Bxb5 {[%clk 0:02:41]} 14. axb5 {[%clk 0:02:32]}  Qxb5 {[%clk 0:02:41]} 15. bxc4 {[%clk 0:02:33]}  dxc4 {[%clk 0:02:42]} 16. Qb1 {[%clk 0:00:28]}  Qb3 {[%clk 0:01:50]} 17. O-O {[%clk 0:00:02]}  Nd5 {[%clk 0:01:19]} 18. Nd2 {[%clk 0:00:02]}  Qxc3 {[%clk 0:01:13]} 19. Nxc4 {[%clk 0:00:01]}  Nxf4 {[%clk 0:01:14]} 20. exf4 {[%clk 0:00:02]}  Qxd4 {[%clk 0:01:13]} 21. Rd1 {[%clk 0:00:02]}  Qxa1 {[%clk 0:01:12]} 22. Qxa1 {[%clk 0:00:03]}  Bxa1 {[%clk 0:01:12]} 23. Rxa1 {[%clk 0:00:04]}  Nc5 {[%clk 0:01:10]} 24. Ne5 {[%clk 0:00:04]}  Rfd8 {[%clk 0:01:07]} 25. Bf3 {[%clk 0:00:04]}  a6 {[%clk 0:01:05]} 26. h4 {[%clk 0:00:04]}  h5 {[%clk 0:01:04]} 27. g3 {[%clk 0:00:04]}  Rab8 {[%clk 0:01:04]} 28. Nc4 {[%clk 0:00:05]}  b5 {[%clk 0:01:03]} 29. Na5 {[%clk 0:00:05]}  Rb6 {[%clk 0:00:57]} 30. Nc6 {[%clk 0:00:05]}  Rd7 {[%clk 0:00:55]} 31. Ne5 {[%clk 0:00:04]}  Rd2 {[%clk 0:00:54]} 32. Rc1 {[%clk 0:00:04]}  Nd3 {[%clk 0:00:52]} 33. Rc8+ {[%clk 0:00:04]}  Kg7 {[%clk 0:00:52]} 34. Be4 {[%clk 0:00:03]}  Nxe5 {[%clk 0:00:52]} 35. fxe5 {[%clk 0:00:03]}  b4 {[%clk 0:00:52]} 36. f4 {[%clk 0:00:01]}  b3 {[%clk 0:00:52]} 37. f5 {[%clk 0:00:01]}  b2 {[%clk 0:00:52]} 38. f6+ {[%clk 0:00:01]}  exf6 {[%clk 0:00:52]} 39. exf6+ {[%clk 0:00:00]}  Kxf6 {[%clk 0:00:52]} 0-1


[Site "https://www.chess.com"]

[Event "Titled Tuesday Blitz November 07 Early 2023"]
[White "Gu, Xiaobing"]
[Black "Saydaliev, Saidakbar"]
[WhiteFideId "8602611"]
[BlackFideId "14203693"]
[WhiteElo "2427"]
[BlackElo "2774"]
[Result "0-1"]
[Round "1"]
[TimeControl "180+1"]
[Date "2023.11.07"]
[WhiteClock "0:00:00"]
[BlackClock "0:00:17"]
[Board "90"]

1. e4 {[%clk 0:03:00]}  c5 {[%clk 0:02:57]} 2. Nf3 {[%clk 0:02:59]}  d6 {[%clk 0:02:58]} 3. Bb5+ {[%clk 0:02:53]}  Nd7 {[%clk 0:02:58]} 4. c4 {[%clk 0:02:52]}  Nf6 {[%clk 0:02:54]} 5. Nc3 {[%clk 0:02:51]}  g6 {[%clk 0:02:54]} 6. d4 {[%clk 0:02:48]}  cxd4 {[%clk 0:02:54]} 7. Nxd4 {[%clk 0:02:48]}  Bg7 {[%clk 0:02:54]} 8. O-O {[%clk 0:02:48]}  O-O {[%clk 0:02:54]} 9. Bxd7 {[%clk 0:02:47]}  Bxd7 {[%clk 0:02:54]} 10. h3 {[%clk 0:02:46]}  Bc6 {[%clk 0:02:50]} 11. Qd3 {[%clk 0:02:45]}  Nd7 {[%clk 0:02:50]} 12. Be3 {[%clk 0:02:38]}  Rc8 {[%clk 0:02:07]} 13. b3 {[%clk 0:02:11]}  a6 {[%clk 0:02:01]} 14. a4 {[%clk 0:02:00]}  Nc5 {[%clk 0:01:57]} 15. Qc2 {[%clk 0:01:52]}  Ne6 {[%clk 0:01:45]} 16. Nxc6 {[%clk 0:01:17]}  bxc6 {[%clk 0:01:43]} 17. Rad1 {[%clk 0:01:15]}  Qa5 {[%clk 0:01:41]} 18. Ne2 {[%clk 0:01:02]}  Rb8 {[%clk 0:01:39]} 19. Bd2 {[%clk 0:00:43]}  Qb6 {[%clk 0:01:26]} 20. b4 {[%clk 0:00:42]}  a5 {[%clk 0:01:06]} 21. bxa5 {[%clk 0:00:40]}  Qa6 {[%clk 0:01:03]} 22. Rb1 {[%clk 0:00:37]}  Nd4 {[%clk 0:00:59]} 23. Nxd4 {[%clk 0:00:36]}  Bxd4 {[%clk 0:00:59]} 24. Rb3 {[%clk 0:00:33]}  Kg7 {[%clk 0:00:34]} 25. Rfb1 {[%clk 0:00:27]}  Rxb3 {[%clk 0:00:34]} 26. Qxb3 {[%clk 0:00:26]}  f5 {[%clk 0:00:34]} 27. Bc3 {[%clk 0:00:23]}  c5 {[%clk 0:00:22]} 28. Bxd4+ {[%clk 0:00:21]}  cxd4 {[%clk 0:00:23]} 29. Qb7 {[%clk 0:00:20]}  Qxa5 {[%clk 0:00:20]} 30. Qxe7+ {[%clk 0:00:19]}  Rf7 {[%clk 0:00:21]} 31. Qxd6 {[%clk 0:00:20]}  Qd2 {[%clk 0:00:19]} 32. Qe5+ {[%clk 0:00:17]}  Kh6 {[%clk 0:00:19]} 33. g4 {[%clk 0:00:13]}  fxe4 {[%clk 0:00:19]} 34. Qxe4 {[%clk 0:00:07]}  Qxf2+ {[%clk 0:00:19]} 35. Kh1 {[%clk 0:00:07]}  Rf3 {[%clk 0:00:18]} 36. g5+ {[%clk 0:00:05]}  Kxg5 {[%clk 0:00:18]} 37. Qg4+ {[%clk 0:00:05]}  Kh6 {[%clk 0:00:19]} 38. c5 {[%clk 0:00:00]}  Rf4 {[%clk 0:00:17]} 0-1


[Site "https://www.chess.com"]

[Event "Titled Tuesday Blitz November 07 Early 2023"]
[White "Kostiukov, Alexandr"]
[Black "Pultinevicius, Paulius"]
[WhiteFideId "14108100"]
[BlackFideId "12809390"]
[WhiteElo "2424"]
[BlackElo "2770"]
[Result "1-0"]
[Round "1"]
[TimeControl "180+1"]
[Date "2023.11.07"]
[WhiteClock "0:00:05"]
[BlackClock "0:00:00"]
[Board "92"]

1. g3 {[%clk 0:02:57]}  e5 {[%clk 0:02:58]} 2. c4 {[%clk 0:02:54]}  c6 {[%clk 0:02:57]} 3. Bg2 {[%clk 0:02:54]}  d5 {[%clk 0:02:56]} 4. cxd5 {[%clk 0:02:54]}  cxd5 {[%clk 0:02:57]} 5. d4 {[%clk 0:02:54]}  e4 {[%clk 0:02:53]} 6. Nc3 {[%clk 0:02:54]}  Nf6 {[%clk 0:02:48]} 7. Bg5 {[%clk 0:02:53]}  Be7 {[%clk 0:02:44]} 8. Nh3 {[%clk 0:02:53]}  Bxh3 {[%clk 0:02:24]} 9. Bxh3 {[%clk 0:02:52]}  Nc6 {[%clk 0:02:24]} 10. e3 {[%clk 0:02:51]}  O-O {[%clk 0:02:12]} 11. O-O {[%clk 0:02:40]}  Ne8 {[%clk 0:01:30]} 12. Bxe7 {[%clk 0:02:38]}  Nxe7 {[%clk 0:01:31]} 13. Qb3 {[%clk 0:02:32]}  Rb8 {[%clk 0:01:31]} 14. Rac1 {[%clk 0:02:17]}  f5 {[%clk 0:01:23]} 15. Rc2 {[%clk 0:02:11]}  Kh8 {[%clk 0:01:16]} 16. Rfc1 {[%clk 0:02:04]}  b5 {[%clk 0:01:15]} 17. Ne2 {[%clk 0:01:54]}  g5 {[%clk 0:01:10]} 18. Rc5 {[%clk 0:01:50]}  Qd7 {[%clk 0:01:01]} 19. a4 {[%clk 0:01:39]}  b4 {[%clk 0:00:51]} 20. a5 {[%clk 0:01:30]}  a6 {[%clk 0:00:34]} 21. Kh1 {[%clk 0:01:24]}  Qe6 {[%clk 0:00:31]} 22. Qd1 {[%clk 0:00:59]}  Qh6 {[%clk 0:00:30]} 23. Bg2 {[%clk 0:00:55]}  Nf6 {[%clk 0:00:30]} 24. Rc7 {[%clk 0:00:50]}  Ng4 {[%clk 0:00:27]} 25. Qg1 {[%clk 0:00:47]}  Ng6 {[%clk 0:00:25]} 26. R1c6 {[%clk 0:00:39]}  Qh5 {[%clk 0:00:24]} 27. Bf1 {[%clk 0:00:20]}  f4 {[%clk 0:00:13]} 28. gxf4 {[%clk 0:00:17]}  gxf4 {[%clk 0:00:13]} 29. exf4 {[%clk 0:00:12]}  Nxf4 {[%clk 0:00:11]} 30. Nxf4 {[%clk 0:00:12]}  Rxf4 {[%clk 0:00:12]} 31. Qg3 {[%clk 0:00:10]}  Rbf8 {[%clk 0:00:07]} 32. Rc8 {[%clk 0:00:09]}  Nxf2+ {[%clk 0:00:06]} 33. Kg1 {[%clk 0:00:08]}  e3 {[%clk 0:00:00]} 34. Qxf4 {[%clk 0:00:05]} 1-0


[Site "https://www.chess.com"]

[Event "Titled Tuesday Blitz November 07 Early 2023"]
[White "Bychkov, Vladimir"]
[Black "Gharibyan, Mamikon"]
[WhiteFideId "24151513"]
[BlackFideId "13308300"]
[WhiteElo "2419"]
[BlackElo "2766"]
[Result "1/2-1/2"]
[Round "1"]
[TimeControl "180+1"]
[Date "2023.11.07"]
[WhiteClock "0:00:09"]
[BlackClock "0:00:13"]
[Board "94"]

1. e4 {[%clk 0:02:58]}  e5 {[%clk 0:02:58]} 2. Nf3 {[%clk 0:02:58]}  Nc6 {[%clk 0:02:58]} 3. Bc4 {[%clk 0:02:59]}  Bc5 {[%clk 0:02:56]} 4. c3 {[%clk 0:02:57]}  Nf6 {[%clk 0:02:56]} 5. d3 {[%clk 0:02:57]}  d6 {[%clk 0:02:56]} 6. O-O {[%clk 0:02:54]}  a5 {[%clk 0:02:56]} 7. Nbd2 {[%clk 0:02:54]}  Ba7 {[%clk 0:02:55]} 8. Re1 {[%clk 0:02:49]}  Ne7 {[%clk 0:02:52]} 9. d4 {[%clk 0:02:48]}  Ng6 {[%clk 0:02:50]} 10. Nf1 {[%clk 0:02:47]}  O-O {[%clk 0:02:47]} 11. Ng3 {[%clk 0:02:45]}  c6 {[%clk 0:02:23]} 12. h3 {[%clk 0:02:40]}  exd4 {[%clk 0:02:06]} 13. cxd4 {[%clk 0:02:32]}  d5 {[%clk 0:01:59]} 14. exd5 {[%clk 0:02:32]}  Nxd5 {[%clk 0:01:56]} 15. Bg5 {[%clk 0:02:31]}  f6 {[%clk 0:01:51]} 16. Bd2 {[%clk 0:02:22]}  Kh8 {[%clk 0:01:51]} 17. Bd3 {[%clk 0:02:11]}  Ndf4 {[%clk 0:01:47]} 18. Bxf4 {[%clk 0:02:04]}  Nxf4 {[%clk 0:01:47]} 19. Bc2 {[%clk 0:02:04]}  g6 {[%clk 0:01:44]} 20. Qd2 {[%clk 0:02:01]}  Qc7 {[%clk 0:01:38]} 21. Re4 {[%clk 0:01:55]}  Nd5 {[%clk 0:01:01]} 22. Rae1 {[%clk 0:01:50]}  Qg7 {[%clk 0:01:00]} 23. Qxa5 {[%clk 0:01:32]}  Bd7 {[%clk 0:00:42]} 24. Qd2 {[%clk 0:01:22]}  Bb8 {[%clk 0:00:40]} 25. Ne2 {[%clk 0:00:56]}  Rxa2 {[%clk 0:00:34]} 26. Nc3 {[%clk 0:00:49]}  Nxc3 {[%clk 0:00:26]} 27. Re7 {[%clk 0:00:48]}  Rf7 {[%clk 0:00:26]} 28. Rxf7 {[%clk 0:00:45]}  Qxf7 {[%clk 0:00:27]} 29. Qxc3 {[%clk 0:00:39]}  Ra8 {[%clk 0:00:25]} 30. Bb3 {[%clk 0:00:38]}  Qf8 {[%clk 0:00:24]} 31. d5 {[%clk 0:00:34]}  Bd6 {[%clk 0:00:23]} 32. Ng5 {[%clk 0:00:30]}  Bb4 {[%clk 0:00:21]} 33. Nf7+ {[%clk 0:00:14]}  Kg7 {[%clk 0:00:20]} 34. Qe3 {[%clk 0:00:12]}  Bxe1 {[%clk 0:00:17]} 35. Qh6+ {[%clk 0:00:12]}  Kxf7 {[%clk 0:00:17]} 36. d6+ {[%clk 0:00:12]}  Ke8 {[%clk 0:00:15]} 37. Qe3+ {[%clk 0:00:08]}  Kd8 {[%clk 0:00:12]} 38. Qb6+ {[%clk 0:00:08]}  Ke8 {[%clk 0:00:12]} 39. Qe3+ {[%clk 0:00:09]}  Kd8 {[%clk 0:00:13]} 40. Qb6+ {[%clk 0:00:09]}  Ke8 {[%clk 0:00:13]} 41. Qe3+ {[%clk 0:00:09]} 1/2-1/2


[Site "https://www.chess.com"]

[Event "Titled Tuesday Blitz November 07 Early 2023"]
[White "Ladan, Nicholas"]
[Black "Llorente Zaro, Alfonso"]
[WhiteFideId "30918855"]
[BlackFideId "2254131"]
[WhiteElo "2408"]
[BlackElo "2747"]
[Result "0-1"]
[Round "1"]
[TimeControl "180+1"]
[Date "2023.11.07"]
[WhiteClock "0:00:22"]
[BlackClock "0:01:15"]
[Board "102"]

1. d4 {[%clk 0:02:52]}  Nf6 {[%clk 0:02:56]} 2. Bf4 {[%clk 0:02:52]}  d6 {[%clk 0:02:56]} 3. e3 {[%clk 0:02:53]}  g6 {[%clk 0:02:56]} 4. Nd2 {[%clk 0:02:53]}  Bg7 {[%clk 0:02:56]} 5. h4 {[%clk 0:02:53]}  Nc6 {[%clk 0:02:55]} 6. Bd3 {[%clk 0:02:50]}  e5 {[%clk 0:02:54]} 7. dxe5 {[%clk 0:02:45]}  dxe5 {[%clk 0:02:55]} 8. Bg5 {[%clk 0:02:42]}  h6 {[%clk 0:02:38]} 9. Bxf6 {[%clk 0:02:42]}  Qxf6 {[%clk 0:02:39]} 10. h5 {[%clk 0:02:39]}  g5 {[%clk 0:02:39]} 11. Ne4 {[%clk 0:02:37]}  Qe6 {[%clk 0:02:33]} 12. Ng3 {[%clk 0:02:34]}  e4 {[%clk 0:02:27]} 13. Bxe4 {[%clk 0:02:29]}  Bxb2 {[%clk 0:02:26]} 14. Rb1 {[%clk 0:02:28]}  Bc3+ {[%clk 0:02:26]} 15. Kf1 {[%clk 0:02:28]}  Bg7 {[%clk 0:02:26]} 16. Bd5 {[%clk 0:02:18]}  Qe7 {[%clk 0:02:21]} 17. Qf3 {[%clk 0:01:57]}  Ne5 {[%clk 0:02:20]} 18. Qe4 {[%clk 0:01:50]}  c6 {[%clk 0:02:20]} 19. Bb3 {[%clk 0:01:47]}  Ng4 {[%clk 0:02:16]} 20. Nf3 {[%clk 0:01:31]}  Qxe4 {[%clk 0:02:12]} 21. Nxe4 {[%clk 0:01:27]}  Ke7 {[%clk 0:02:13]} 22. Ke2 {[%clk 0:01:17]}  f5 {[%clk 0:02:12]} 23. Ng3 {[%clk 0:01:03]}  Rd8 {[%clk 0:01:46]} 24. Rhd1 {[%clk 0:00:56]}  Rxd1 {[%clk 0:01:38]} 25. Rxd1 {[%clk 0:00:55]}  Bd7 {[%clk 0:01:39]} 26. Nd4 {[%clk 0:00:53]}  Rf8 {[%clk 0:01:40]} 27. c3 {[%clk 0:00:34]}  c5 {[%clk 0:01:29]} 28. Nc2 {[%clk 0:00:33]}  Bxc3 {[%clk 0:01:19]} 29. Ne1 {[%clk 0:00:28]}  Bb5+ {[%clk 0:01:17]} 30. Nd3 {[%clk 0:00:23]}  c4 {[%clk 0:01:17]} 31. Rc1 {[%clk 0:00:22]}  cxd3+ {[%clk 0:01:15]} 0-1


[Site "https://www.chess.com"]

[Event "Titled Tuesday Blitz November 07 Early 2023"]
[White "Smirnov, Pavel"]
[Black "Todorovic, Bojan"]
[WhiteFideId "4123425"]
[BlackFideId "917087"]
[WhiteElo "2733"]
[BlackElo "2406"]
[Result "1-0"]
[Round "1"]
[TimeControl "180+1"]
[Date "2023.11.07"]
[WhiteClock "0:01:08"]
[BlackClock "0:00:00"]
[Board "107"]

1. d4 {[%clk 0:03:00]}  g6 {[%clk 0:02:58]} 2. e4 {[%clk 0:02:59]}  Bg7 {[%clk 0:02:58]} 3. Nc3 {[%clk 0:03:00]}  d6 {[%clk 0:02:58]} 4. f4 {[%clk 0:03:00]}  a6 {[%clk 0:02:58]} 5. Nf3 {[%clk 0:03:01]}  Nd7 {[%clk 0:02:58]} 6. Bd3 {[%clk 0:03:01]}  b5 {[%clk 0:02:58]} 7. a4 {[%clk 0:03:00]}  b4 {[%clk 0:02:49]} 8. Ne2 {[%clk 0:03:00]}  Bb7 {[%clk 0:02:47]} 9. O-O {[%clk 0:02:59]}  e6 {[%clk 0:02:44]} 10. Qe1 {[%clk 0:02:55]}  Rb8 {[%clk 0:02:39]} 11. Kh1 {[%clk 0:02:53]}  Ngf6 {[%clk 0:02:33]} 12. Ng3 {[%clk 0:02:52]}  O-O {[%clk 0:02:30]} 13. e5 {[%clk 0:02:53]}  Nd5 {[%clk 0:02:24]} 14. Ne4 {[%clk 0:02:51]}  Qe7 {[%clk 0:02:16]} 15. Bd2 {[%clk 0:02:41]}  a5 {[%clk 0:02:05]} 16. Qg3 {[%clk 0:02:34]}  Ra8 {[%clk 0:01:20]} 17. Rae1 {[%clk 0:02:28]}  Ba6 {[%clk 0:01:19]} 18. Bxa6 {[%clk 0:02:24]}  Rxa6 {[%clk 0:01:19]} 19. c4 {[%clk 0:02:25]}  bxc3 {[%clk 0:01:18]} 20. bxc3 {[%clk 0:02:26]}  N7b6 {[%clk 0:01:17]} 21. Nfg5 {[%clk 0:02:23]}  Nc4 {[%clk 0:01:10]} 22. Bc1 {[%clk 0:02:22]}  Rb6 {[%clk 0:01:03]} 23. Qh3 {[%clk 0:02:15]}  h6 {[%clk 0:01:02]} 24. Nf3 {[%clk 0:02:13]}  Rb1 {[%clk 0:00:56]} 25. g4 {[%clk 0:02:11]}  Rxc1 {[%clk 0:00:54]} 26. Rxc1 {[%clk 0:02:09]}  Nxf4 {[%clk 0:00:55]} 27. Qh4 {[%clk 0:02:03]}  Qxh4 {[%clk 0:00:40]} 28. Nxh4 {[%clk 0:02:02]}  Nd3 {[%clk 0:00:31]} 29. Rcd1 {[%clk 0:02:00]}  Ndb2 {[%clk 0:00:24]} 30. Rb1 {[%clk 0:01:55]}  Nxa4 {[%clk 0:00:23]} 31. Rb7 {[%clk 0:01:55]}  d5 {[%clk 0:00:22]} 32. Nf6+ {[%clk 0:01:51]}  Bxf6 {[%clk 0:00:17]} 33. Rxf6 {[%clk 0:01:52]}  Nxc3 {[%clk 0:00:16]} 34. Rxc7 {[%clk 0:01:52]}  a4 {[%clk 0:00:17]} 35. Nxg6 {[%clk 0:01:20]}  fxg6 {[%clk 0:00:16]} 36. Rxg6+ {[%clk 0:01:21]}  Kh8 {[%clk 0:00:16]} 37. Rxh6+ {[%clk 0:01:22]}  Kg8 {[%clk 0:00:17]} 38. Rhh7 {[%clk 0:01:21]}  Rf1+ {[%clk 0:00:14]} 39. Kg2 {[%clk 0:01:21]}  Ne3+ {[%clk 0:00:14]} 40. Kh3 {[%clk 0:01:19]}  Ne4 {[%clk 0:00:14]} 41. Kh4 {[%clk 0:01:09]}  Ng2+ {[%clk 0:00:08]} 42. Kh5 {[%clk 0:01:08]}  Nf4+ {[%clk 0:00:00]} 43. Kh6 {[%clk 0:01:08]} 1-0


[Site "https://www.chess.com"]

[Event "Titled Tuesday Blitz November 07 Early 2023"]
[White "Perez Gormaz, Matias"]
[Black "La Villa Rivas, Marlon Javier"]
[WhiteFideId "3406342"]
[BlackFideId "3519546"]
[WhiteElo "2726"]
[BlackElo "2403"]
[Result "1-0"]
[Round "1"]
[TimeControl "180+1"]
[Date "2023.11.07"]
[WhiteClock "0:00:14"]
[BlackClock "0:00:14"]
[Board "109"]

1. d4 {[%clk 0:03:00]}  Nf6 {[%clk 0:02:43]} 2. Bf4 {[%clk 0:03:00]}  d5 {[%clk 0:02:42]} 3. e3 {[%clk 0:03:00]}  c5 {[%clk 0:02:43]} 4. Nf3 {[%clk 0:03:01]}  Nc6 {[%clk 0:02:43]} 5. Nbd2 {[%clk 0:03:01]}  Bg4 {[%clk 0:02:41]} 6. c3 {[%clk 0:02:56]}  Qb6 {[%clk 0:02:26]} 7. dxc5 {[%clk 0:02:45]}  Qxb2 {[%clk 0:02:20]} 8. Rb1 {[%clk 0:02:45]}  Qxc3 {[%clk 0:02:20]} 9. Rxb7 {[%clk 0:02:45]}  e5 {[%clk 0:02:18]} 10. Bb5 {[%clk 0:02:42]}  Qxc5 {[%clk 0:02:15]} 11. Qa4 {[%clk 0:02:36]}  Rc8 {[%clk 0:02:00]} 12. O-O {[%clk 0:02:20]}  exf4 {[%clk 0:01:57]} 13. exf4 {[%clk 0:02:14]}  Bd6 {[%clk 0:01:36]} 14. Nb3 {[%clk 0:02:08]}  Qc2 {[%clk 0:01:22]} 15. Nfd4 {[%clk 0:02:01]}  Qe4 {[%clk 0:01:07]} 16. Bxc6+ {[%clk 0:01:56]}  Kf8 {[%clk 0:01:07]} 17. Qxa7 {[%clk 0:01:52]}  Bh5 {[%clk 0:01:01]} 18. g3 {[%clk 0:01:43]}  Bg6 {[%clk 0:00:45]} 19. Nc5 {[%clk 0:01:05]}  Bxc5 {[%clk 0:00:43]} 20. Qxc5+ {[%clk 0:01:05]}  Kg8 {[%clk 0:00:43]} 21. Qc3 {[%clk 0:00:38]}  h5 {[%clk 0:00:41]} 22. Re1 {[%clk 0:00:39]}  Rxc6 {[%clk 0:00:34]} 23. Nxc6 {[%clk 0:00:35]}  Qa4 {[%clk 0:00:33]} 24. Ne7+ {[%clk 0:00:33]}  Kh7 {[%clk 0:00:33]} 25. Nxg6 {[%clk 0:00:34]}  Kxg6 {[%clk 0:00:34]} 26. Qd3+ {[%clk 0:00:28]}  Kh6 {[%clk 0:00:30]} 27. Qf5 {[%clk 0:00:26]}  Qc6 {[%clk 0:00:19]} 28. Rxf7 {[%clk 0:00:25]}  Rg8 {[%clk 0:00:19]} 29. Re6 {[%clk 0:00:24]}  Qc1+ {[%clk 0:00:18]} 30. Kg2 {[%clk 0:00:25]}  h4 {[%clk 0:00:17]} 31. Qg5+ {[%clk 0:00:21]}  Kh7 {[%clk 0:00:15]} 32. Rexf6 {[%clk 0:00:17]}  h3+ {[%clk 0:00:14]} 33. Kxh3 {[%clk 0:00:17]}  Qf1+ {[%clk 0:00:14]} 34. Kh4 {[%clk 0:00:17]}  Qd3 {[%clk 0:00:14]} 35. Rh6# {[%clk 0:00:14]} 1-0


[Site "https://www.chess.com"]

[Event "Titled Tuesday Blitz November 07 Early 2023"]
[White "Orozbaev, Eldiar"]
[Black "UK_23"]
[WhiteFideId "13802240"]
[WhiteElo "2719"]
[BlackElo "2402"]
[Result "1-0"]
[Round "1"]
[TimeControl "180+1"]
[Date "2023.11.07"]
[WhiteClock "0:00:31"]
[BlackClock "0:00:43"]
[Board "111"]

1. e4 {[%clk 0:02:59]}  e5 {[%clk 0:03:00]} 2. Nf3 {[%clk 0:02:57]}  Nc6 {[%clk 0:03:00]} 3. Bc4 {[%clk 0:02:52]}  Nf6 {[%clk 0:02:59]} 4. d3 {[%clk 0:02:26]}  Be7 {[%clk 0:02:59]} 5. O-O {[%clk 0:02:26]}  O-O {[%clk 0:02:59]} 6. c3 {[%clk 0:02:24]}  d5 {[%clk 0:02:59]} 7. exd5 {[%clk 0:02:24]}  Nxd5 {[%clk 0:03:00]} 8. h3 {[%clk 0:02:22]}  Nb6 {[%clk 0:02:55]} 9. Bb3 {[%clk 0:02:16]}  Bf5 {[%clk 0:02:52]} 10. Bc2 {[%clk 0:02:16]}  Bd6 {[%clk 0:02:47]} 11. Qe2 {[%clk 0:02:16]}  Qd7 {[%clk 0:02:45]} 12. Ng5 {[%clk 0:02:02]}  Rae8 {[%clk 0:02:39]} 13. Ne4 {[%clk 0:02:02]}  Be7 {[%clk 0:02:37]} 14. Ng3 {[%clk 0:01:55]}  Bg6 {[%clk 0:02:37]} 15. Rd1 {[%clk 0:01:42]}  Bd6 {[%clk 0:02:32]} 16. Nd2 {[%clk 0:01:40]}  f5 {[%clk 0:02:32]} 17. Ngf1 {[%clk 0:01:39]}  Kh8 {[%clk 0:02:22]} 18. Nc4 {[%clk 0:01:31]}  Nxc4 {[%clk 0:02:18]} 19. dxc4 {[%clk 0:01:32]}  Qf7 {[%clk 0:02:13]} 20. b4 {[%clk 0:01:30]}  e4 {[%clk 0:02:10]} 21. c5 {[%clk 0:01:24]}  Be5 {[%clk 0:02:10]} 22. Bg5 {[%clk 0:01:24]}  Bxc3 {[%clk 0:02:04]} 23. Bb3 {[%clk 0:01:23]}  Re6 {[%clk 0:01:58]} 24. Rac1 {[%clk 0:01:12]}  Bxb4 {[%clk 0:01:55]} 25. Qb5 {[%clk 0:01:03]}  h6 {[%clk 0:01:32]} 26. Bf4 {[%clk 0:00:56]}  Ba3 {[%clk 0:01:30]} 27. Rb1 {[%clk 0:00:51]}  Bh5 {[%clk 0:01:28]} 28. Rd2 {[%clk 0:00:45]}  g5 {[%clk 0:01:07]} 29. Bxe6 {[%clk 0:00:43]}  Qxe6 {[%clk 0:01:07]} 30. Bxc7 {[%clk 0:00:44]}  f4 {[%clk 0:01:00]} 31. Rd6 {[%clk 0:00:43]}  Qf5 {[%clk 0:00:56]} 32. Rxh6+ {[%clk 0:00:43]}  Kg7 {[%clk 0:00:56]} 33. Rxh5 {[%clk 0:00:43]}  e3 {[%clk 0:00:57]} 34. Qxb7 {[%clk 0:00:32]}  exf2+ {[%clk 0:00:54]} 35. Kh1 {[%clk 0:00:33]}  Rf7 {[%clk 0:00:54]} 36. Qxc6 {[%clk 0:00:31]}  f3 {[%clk 0:00:43]} 37. Qh6+ {[%clk 0:00:30]}  Kg8 {[%clk 0:00:43]} 38. Qh8# {[%clk 0:00:31]} 1-0


[Site "https://www.chess.com"]